Cogmind - Beta 17 @@@ ROGUE MODE // 2026.08.15 @ 15:33:57 Player: Fedop Result: Destroyed by as-63642 with Assembled Heavy Rifle Performance ------------- Evolutions (1) 500 Regions Visited (3) 600 Robots Destroyed (36) 180 Value Destroyed (902) 902 Prototype IDs (3) 60 Alien Tech Used (0) 0 Bonus (0) 0 TOTAL SCORE: 2242 Bonus ------- None Cogmind --------- Core Integrity 0/400 Matter 300/300 Energy 100/100 System Corruption 16% Temperature Cool (0) Movement Core (100) Ox1 Location -9/Mines Parts ------- > --- POWER (1) -------- (None) > --- PROPULSION (2) --- (None) > --- UTILITY (4) ------ Heat Sink (fused) Sensor Array Signal Interpreter > --- WEAPON (2) ------- Grenade Launcher > --- INVENTORY (5) ---- Light Ion Engine Wheel Advanced Beam Cannon Mining Laser Peak State ------------ > --- POWER ------------ Light Nuclear Core > --- PROPULSION ------- Wheel Wheel > --- UTILITY ---------- Small Storage Unit Sensor Array Signal Interpreter Hardened Light Armor Plating > --- WEAPON ----------- Assault Rifle Assault Rifle > --- INVENTORY -------- Ion Engine Weapon Shielding Light Armor Plating Light Armor Plating Light Assault Rifle Mining Laser [Rating: 12] Favorites ----------- Power Ion Engine Engine Ion Engine Power Core Light Nuclear Core Propulsion Wheel Treads Light Treads Wheel Wheel Flight Unit Improved Flight Unit Utility Signal Interpreter Device Sensor Array Storage Small Storage Unit Processor Signal Interpreter Protection Light Armor Plating Weapon Assault Rifle Energy Gun Beam Rifle Energy Cannon Advanced Beam Cannon Ballistic Gun Assault Rifle Launcher Grenade Launcher Special Weapon Mining Laser Build | -11 -10 -9 -9 ------- Run | Yrd Mat Mat Min Slots Evolved 2 | . . 2 . Power . | . . . . Propulsion . | . . . . Utility 2 | . . 2 . Weapon . | . . . . Parts Attached 44 | 8 8 23 5 Power 8 | 2 1 4 1 Engine 7 | 2 . 4 1 Core 1 | . 1 . . Reactor . | . . . . Propulsion 8 | 2 1 4 1 Treads 1 | . . 1 . Leg . | . . . . Wheel 6 | 2 1 2 1 Hover . | . . . . Flight 1 | . . 1 . Utility 14 | 1 4 7 2 Device 4 | . 1 2 1 Storage 2 | 1 1 . . Processor 2 | . . 1 1 Hackware . | . . . . Protection 6 | . 2 4 . Artifact . | . . . . Weapon 14 | 3 2 8 1 Energy Gun 2 | . . 2 . Energy Cannon 1 | . . 1 . Ballistic Gun 8 | 3 . 5 . Ballistic Cannon . | . . . . Launcher 1 | . . . 1 Special Weapon 2 | . 2 . . Impact Weapon . | . . . . Slashing Weapon . | . . . . Piercing Weapon . | . . . . Special Melee Weapon . | . . . . Unidentified Prototypes 3 | . . 3 . Corrupted Parts 1 | . . 1 . System Corruption 6 | . . 6 . Parts Lost 20 | . 1 13 6 Power 4 | . . 3 1 Propulsion 6 | . 1 2 3 Utility 5 | . . 4 1 Weapon 5 | . . 4 1 Highest Loss Streak 7 | . 1 7 5 To Critical Strikes . | . . . . Average Backups 5 | . 6 4 4 Power . | . 1 . 1 Propulsion . | . . . 1 Utility 1 | . 3 1 . Weapon 2 | . 1 2 2 Tool/Special . | . . . . Unused Backups 7 | . 5 1 1 Power . | . . . . Propulsion 2 | . . 1 1 Utility 5 | . 5 . . Weapon . | . . . . Tool/Special . | . . . . Average Slot Usage (%) 88 | . 96 79 94 Engine 7 | . 8 6 11 Core 3 | . 5 2 . Wheel 20 | . 26 14 21 Device 10 | . 4 7 29 Storage 6 | . 14 3 . Processor 6 | . . 10 10 Protection 8 | . 8 11 . Energy Gun 3 | . . 3 11 Energy Cannon 3 | . . 3 11 Ballistic Gun 13 | . 22 13 . Special Weapon 1 | . 5 . . Peak Build Rating 12 | 6 9 12 12 Average Rating 9 | 4 7 9 11 On Entrance 6 | . 6 9 11 Avg Prop Armor Cover (%) 2 | . . 2 . Naked Turns . | . . . . Heaviest Build 54 | 14 54 20 15 Greatest Support 32 | 20 20 32 32 Greatest Overweight (x) 4 | . 2 4 1 Average Overweight (x) . | . . . . Largest Inventory Capacity 20 | 8 20 8 5 Average Capacity 6 | 7 8 5 5 Most Carried 8 | 2 8 7 5 Average Carried 5 | . 7 4 4 Final Capacity 8 | 8 8 5 5 Final Carried 7 | 2 7 5 4 Class Distribution -------------------- 72% | Mutant 27% | Scavenger-Mutant Dominant Class ---------------- Mutant | -10/Materials Mutant | -9/Materials Scavenger-Mutant | -9/Mines Resources | -11 -10 -9 -9 ----------- Run | Yrd Mat Mat Min Matter Collected 1140 | 226 195 622 97 Remotely 144 | . . 65 79 Salvage Created 1272 | . 167 875 230 Parts 66 | . 12 45 9 Haulers Intercepted 1 | . . 1 . Recyclers Shooed 3 | . 2 1 . Parts Field Recycled . | . . . . Retrieved Matter . | . . . . Parts Self-Destructed . | . . . . Prevented . | . . . . Parts Restored . | . . . . Kills | -11 -10 -9 -9 ------- Run | Yrd Mat Mat Min Combat Hostiles Destroyed 27 | . 3 18 6 Guns 23 | . 3 17 3 Cannons 4 | . . 1 3 Classes Destroyed 10 | . 3 6 1 Worker 3 | . . 3 . Tunneler 1 | . 1 . . Hauler 1 | . . 1 . Recycler 2 | . . 2 . Watcher 2 | . 1 1 . Swarmer 7 | . . 7 . Grunt 16 | . 3 8 5 Brawler 1 | . . 1 . Duelist 1 | . . . 1 Sentry 2 | . . 2 . Best Kill Streak 8 | . 2 8 3 Combat Bots Only 7 | . 2 7 3 Max Kills in Single Turn 2 | . 1 2 1 Gunslinging . | . . . . Exploded . | . . . . Melee . | . . . . Uniques/NPCs Destroyed . | . . . . Combat | -11 -10 -9 -9 -------- Run | Yrd Mat Mat Min Hostile Shots Fired 226 | . 16 189 21 Missed 46 | . 3 39 4 Hits 180 | . 13 150 17 Melee 3 | . . 1 2 Projectile 177 | . 13 149 15 AOE 3 | . . 1 2 Critical Strikes 3 | . 1 2 . Damage Taken 2206 | . 198 1653 355 Core 429 | . 27 327 75 Absorbed by Shields . | . . . . Redirected to Shielding 46 | . . 46 . Core Remaining (%) 94 | 100 89 . . Volleys Fired 118 | . 31 73 14 Largest 2 | . 2 2 2 Hottest 124 | . 100 124 124 Shots Fired 210 | . 43 138 29 Gun 164 | . 29 121 14 Cannon 30 | . . 17 13 Launcher 2 | . . . 2 Special 14 | . 14 . . Kinetic 136 | . 29 107 . Thermal 61 | . 14 20 27 Explosive 2 | . . . 2 Electromagnetic 11 | . . 11 . Robot Hit Streak 14 | . 6 14 7 Robot Miss Streak 7 | . 4 7 2 Penetration Max . | . . . . Secondary Targets 1 | . . 1 . Max Gunslinging Chain 1 | . . 1 . Shots Hit Robots 114 | . 17 83 14 Core Hits 56 | . 9 38 9 Critical Kills 1 | . . 1 . Critical Parts Destroyed 1 | . 1 . . Critical Strikes 3 | . 1 2 . Burn 1 | . . 1 . Meltdown 1 | . . 1 . Destroy 1 | . 1 . . Melee Attacks . | . . . . Impact . | . . . . Slashing . | . . . . Piercing . | . . . . Sneak Attacks . | . . . . Combat Hostiles . | . . . . Follow-up Attacks . | . . . . Damage Inflicted 1855 | . 222 1234 399 Guns 1345 | . 222 1007 116 Cannons 329 | . . 227 102 Explosions 175 | . . . 175 Melee . | . . . . Ramming 6 | . . . 6 Kinetic 1053 | . 222 831 . Thermal 487 | . . 269 218 Explosive 175 | . . . 175 Electromagnetic 134 | . . 134 . Impact . | . . . . Slashing . | . . . . Piercing . | . . . . Highest Corruption 16 | . . 16 16 Average Corruption 10 | . . 8 16 Corruption Purged . | . . . . Corruption Blocked . | . . . . Effects 29 | . . 21 8 Message Errors 7 | . . 5 2 Matter Fused 6 | . . 4 2 Heat Flow Errors 1 | . . 1 . Energy Discharges 5 | . . 4 1 Parts Rejected 1 | . . 1 . Parts Fused 2 | . . . 2 Data Loss (major) 1 | . . 1 . Misfires 1 | . . . 1 Alerts 1 | . . 1 . Weapon Failures 4 | . . 4 . Overload Shots . | . . . . Overflow Damage . | . . . . Projectiles . | . . . . Explosions . | . . . . Melee . | . . . . Knockbacks . | . . . . Impact . | . . . . Kinetic . | . . . . Secondary . | . . . . Self-Inflicted Damage 31 | . . . 31 Shots 2 | . . . 2 Rammed 1 | . . . 1 Targets Rammed 1 | . . . 1 Kicked . | . . . . Crushed . | . . . . Highest Temperature 340 | . 120 340 300 Average Temperature 83 | . 41 91 91 Received Heat Transfer 681 | . 111 498 72 Effects 3 | . . 2 1 Interference 2 | . . 1 1 Damage (minor) 1 | . . 1 . Siege Activations . | . . . . Martial Activations . | . . . . Shielding Activations . | . . . . Robots Disrupted . | . . . . Combat Hostiles . | . . . . Robots Corrupted . | . . . . Combat Hostiles . | . . . . Parts Fried . | . . . . Impact Corruptions . | . . . . Robots Melted 1 | . . 1 . Combat Hostiles . | . . . . Parts Melted 3 | . . 2 1 Heat Transferred 1073 | . . 592 481 Parts Sabotaged . | . . . . Parts Stolen . | . . . . Parts Stripped . | . . . . Power Chain Reactions . | . . . . Alert | -11 -10 -9 -9 ------- Run | Yrd Mat Mat Min Maximum Alert Level 1 | . . 1 . Low Security (%) 94 | 100 100 87 100 Level 1 5 | . . 12 . Level 2 . | . . . . Level 3 . | . . . . Level 4 . | . . . . Level 5 . | . . . . High Security . | . . . . Max Security . | . . . . Peak Influence 230 | . 59 230 140 Initial 61 | . . 17 61 Average 67 | . 12 107 86 Influence Increases 875 | . 172 534 169 Destroy 0b10 Robot/C 540 | . 60 360 120 Destroy 0b10 Robot/NC 45 | . 10 35 . Destroy Leader 136 | . 22 94 20 Successful Hack 5 | . 5 . . Disable Machine 30 | . 15 . 15 Destroy Structure 14 | . . . 14 Partial Spotted 15 | . . 15 . Lose Combat Pursuer 90 | . 60 30 . Influence Decreases 825 | . 129 419 277 Entered New Map 123 | . . 26 97 Time Decay 502 | . 119 263 120 Lost Part 200 | . 10 130 60 Squads Dispatched 6 | . 2 4 . Investigation 1 | . 1 . . Extermination . | . . . . Reinforcement 5 | . 1 4 . Assault . | . . . . Garrison . | . . . . Intercept . | . . . . Searches Triggered . | . . . . Construction Impeded . | . . . . Haulers Reinforced . | . . . . Active Scanning Responses . | . . . . Cargo Convoy Interrupts . | . . . . Stealth | -11 -10 -9 -9 --------- Run | Yrd Mat Mat Min Distress Signals 3 | . 1 2 . Communications Jammed . | . . . . Distress Signals . | . . . . Times Spotted 59 | . 11 34 14 Peak Tracking Total 19 | . 3 9 19 Tactical Retreats 5 | . 3 2 . Traps | -11 -10 -9 -9 ------- Run | Yrd Mat Mat Min Traps Triggered 5 | . 1 4 . Indirectly . | . . . . Trap Hack Attempts . | . . . . Triggered . | . . . . Disarmed . | . . . . Reprogrammed . | . . . . Reused . | . . . . Traps Extracted . | . . . . Installed . | . . . . Triggered . | . . . . Machines | -11 -10 -9 -9 ---------- Run | Yrd Mat Mat Min Machines Disabled 2 | . 1 . 1 Max in Single Turn 1 | . 1 . 1 Machines Repaired . | . . . . Machines Dismantled . | . . . . Machines Sabotaged . | . . . . Overloaded Fab Kills . | . . . . Hacking | -11 -10 -9 -9 --------- Run | Yrd Mat Mat Min Machines Accessed 3 | . 2 1 . Terminals 1 | . 1 . . Fabricators . | . . . . Repair Stations . | . . . . Recycling Units 2 | . 1 1 . Scanalyzers . | . . . . Garrison Access . | . . . . Total Hacks 7 | . 6 1 . Successful 3 | . 2 1 . Failed 4 | . 4 . . Catastrophic . | . . . . Database Lockouts . | . . . . Manual . | . . . . Terminals 5 | . 5 . . Fabricators . | . . . . Repair Stations . | . . . . Recycling Units 2 | . 1 1 . Scanalyzers . | . . . . Garrison Access . | . . . . Terminal Hacks 1 | . 1 . . Hauler Manifests 1 | . 1 . . Fabricator Hacks . | . . . . Repair Station Hacks . | . . . . Recycling Unit Hacks 2 | . 1 1 . Report Inventory 2 | . 1 1 . Scanalyzer . | . . . . Garrison Access Hacks . | . . . . Unauthorized Hacks . | . . . . Terminals . | . . . . Fabricators . | . . . . Repair Stations . | . . . . Recycling Units . | . . . . Scanalyzers . | . . . . Garrison Access . | . . . . Data Cores Recovered . | . . . . Used . | . . . . Hacking Detections 2 | . 1 1 . Full Trace Events 1 | . 1 . . Feedback Events . | . . . . Feedback Blocked . | . . . . Robot Schematics Acquired . | . . . . Robots Built . | . . . . Authchips . | . . . . Time . | . . . . Total Robot Build Rating . | . . . . Part Schematics Acquired . | . . . . Parts Built . | . . . . Authchips . | . . . . Time . | . . . . Total Part Build Rating . | . . . . Part Studies Acquired . | . . . . Parts Repaired . | . . . . Time . | . . . . Parts Recycled . | . . . . Recycled Matter . | . . . . Retrieved Matter . | . . . . Retrieved Components . | . . . . Parts Scanalyzed . | . . . . Part Schematics Acquired . | . . . . Parts Damaged . | . . . . Bothacking | -11 -10 -9 -9 ------------ Run | Yrd Mat Mat Min Used RIF Installer . | . . . . Robots Hacked . | . . . . Non-combat . | . . . . Combat . | . . . . Robot Hacks Applied . | . . . . Relay Couplers Released . | . . . . Fabnet Peak Effective % . | . . . . Robots Rewired . | . . . . Allies Hacked . | . . . . Hacks Repelled . | . . . . Allies | -11 -10 -9 -9 -------- Run | Yrd Mat Mat Min Total Allies . | . . . . Largest Group . | . . . . Highest-Rated Group . | . . . . Highest-Rated Ally . | . . . . Total Orders . | . . . . Ally Attacks . | . . . . Total Damage . | . . . . Kills . | . . . . Allies Corrupted . | . . . . Allies Melted . | . . . . Intel | -11 -10 -9 -9 ------- Run | Yrd Mat Mat Min Active Infowar (turns) 689 | . 154 282 253 Sensors 689 | . 154 282 253 Robot Analysis Total . | . . . . Derelict Logs Recovered . | . . . . Drone Launches . | . . . . Drone Recoveries . | . . . . Exploration | -11 -10 -9 -9 ------------- Run | Yrd Mat Mat Min Turns Passed 1397 | 52 465 627 253 Spaces Moved 928 | 44 356 332 196 Core 39 | 2 . 34 3 Treads 6 | . . 6 . Legs . | . . . . Wheels 882 | 42 356 291 193 Hover . | . . . . Flight 1 | . . 1 . Fastest Speed 50 | 50 80 80 100 Average Speed 92 | 78 81 100 100 Slowest Speed 250 | 80 110 250 100 Overloaded Moves . | . . . . Propulsion Burnouts . | . . . . Robots Hopped . | . . . . Potential Cave-ins . | . . . . Cave-ins Triggered . | . . . . Exploration Rate (%) 33 | 3 59 25 48 Regions Visited 3 Branch Regions 1 Pre-discovered Areas . | . . . . Known Exits Taken 1 | . . 1 . Unknown Exits Taken 2 | 1 1 . . Scrap Searched 2 | . . . 2 Spaces Dug . | . . . . Terrain Destroyed 19 | . . . 19 Melee . | . . . . Projectile 1 | . . . 1 AOE 18 | . . . 18 Terrain Rammed . | . . . . Walls Destroyed . | . . . . Machines Disabled . | . . . . Actions | -11 -10 -9 -9 --------- Run | Yrd Mat Mat Min Total 1247 | 57 481 486 223 Wait 92 | 6 53 30 3 Move 925 | 43 355 331 196 Hop . | . . . . Pick Up 20 | . 14 6 . Fast Attach 31 | 6 5 17 3 Attach 10 | . 2 7 1 Detach 12 | . 4 7 1 Swap 14 | 2 5 4 3 Drop 24 | . 12 11 1 Fire 118 | . 31 73 14 Melee . | . . . . Ram 1 | . . . 1 Kick . | . . . . Crush . | . . . . Escape Stasis . | . . . . Rewire . | . . . . Trap . | . . . . Miscellaneous . | . . . . Route ------- -11/Scrapyard -10/Materials (discovered 4 exits: *Mat x2 / [*Min x2]) -9/Materials -9/Mines (discovered 1 exit: *Mat) History --------- Turn | Location | Event 12 | -11/Scrapyard | Discovered new exit (range 15) 53 | -11/Scrapyard | Entered Materials 135 | -10/Materials | Discovered new exit (range 5) 207 | -10/Materials | Discovered new exit (range 12) 314 | -10/Materials | Build established: Mutant 393 | -10/Materials | Discovered new exit (range 16) 499 | -10/Materials | Discovered new exit (range 5) 518 | -10/Materials | Entered another Materials area 518 | -9/Materials | Evolved 2 slots: Utility x2 735 | -9/Materials | Discovered new exit (range 14) 858 | -9/Materials | System corruption reached 10% 872 | -9/Materials | Core integrity fell below 50% 884 | -9/Materials | Destroyed 7 combat bots 906 | -9/Materials | Lost 7 parts (1p1n3u2w) 984 | -9/Materials | Core integrity fell below 20% 1144 | -9/Materials | Identified exit to Mines 1145 | -9/Materials | Entered Mines 1162 | -9/Mines | Discovered new exit (range 15) 1176 | -9/Mines | Identified exit to Materials 1346 | -9/Mines | Build established: Scavenger-Mutant 1386 | -9/Mines | Assembled infested the area 1391 | -9/Mines | Assisted by a Guerilla fighting off Assembled 1398 | -9/Mines | Destroyed by as-63642 with Assembled Heavy Rifle Last Messages --------------- 01345_ U-05 Engineer lays Concrete. 01346_ U-05 Engineer builds a Wall. 01359_ System corrupted: Heat Sink fused. 01384_ H81GWLQVUMEW#CTD>G SEAMS#YE|8 01386_ ALERT: Infestation in the mines, dispatching Demolisher response squad. 01390_ Com. Wheel destroyed. 01391_ A derelict emerges from the shadows: "You need to get out of here! I've been tracking a group of Assembled to figure out where they're coming from, and they're closing on this area, come on!" 01392_ GX-GLZ(h): "I'll hold them off! Go on ahead or try to find another way!" 01394_ Tractor Beam destroyed. 01394_ GX-GLZ(h) destroyed. 01394_ Ion Engine destroyed. 01394_ Com. Wheel destroyed. 01394_ Beam Rifle destroyed. 01395_ K-01 Serf collects debris. Map ----- +----------------------------------------------------+ | #?# ######### #?????????????????????????????????? | | ### #???????# #?????????????????????????????????? | | ######??# #?????????????????????????????????? | | ##### #### #?????????????????????????????????? | | ???# #?????????????????????????????????? | | ??## #?????????????????????????????????? | | ### #??####?????????????????????????????????? | | #???????????????????????????????????????? | | #############???????????????????????????? | | # #???????????????????????????? | | ## #???????????????????????????? | | #### #######? #???????????????????????????? | | #??## #???#### #???????????????????????????? | | #???## ##??## #???????????????????????????? | | #????## ##???# #??????##???????????????????? | | #?????## #????# #??????? ???????????????????? | | #??????# #????? #??????? #?????????"?????????? | | #??????# #?????# #??????# #?#????? ????????? | | ???????# #????## #??????# # #??? ????????? | | ???????# #??### #??????# # #?? % ?????????? | | #??????# #?## #??????# # ## %a ??????????? | | ##?????# ### #???#### #?????????? | | ##????# ## #???# k #???????????? | | #????# ##??# = #????????????? | | ####?# #### *%! #?????????????? | | #?######### ##@ #?????????????? | | """ #?????????## a dd#?????????????? | | """ #??????????## #????????????? | | """ #???????????## ### #????????????? | | #????????????## ## ####??? #% ??????????? | | #?????????????########????????#??!! ????????? | | ######??????????????????????????????????! ???????? | | ?????????????????????????????????????????????????? | | ?????????????????????????????????????????????????? | | ?????????????????????????????????????????????????? | | ?????????????????????????????????????????????????? | | ?????????????????????????????????????????????????? | | ?????????????????????????????????????????????????? | | | | | | | | | | | | | | | | | | | | | | | | | +----------------------------------------------------+ Best States ------------- Heat Dissipation 38 Energy Generation 14 Energy Capacity 250 Matter Stores 300 Matter Capacity 300 Sight Range 16 Robot Scan Range 14 Terrain Scan Density 10 Armor Coverage 450 Weapon Shielding 33 Evasion (%) 44 Recoil Reduction 1 Item Schematics ----------------- None Robot Schematics ------------------ None Fabricated ------------ Nothing Repaired ---------- Nothing Studied --------- None Alien Tech Used ----------------- None Achievements -------------- None Challenges ------------ None Game ------ Seed AntisysChromionFlakker Manual? 0 Play Time 00:27:47 Cumulative 49.9 hours Start 2026.08.15 @ 15:05:51 End 2026.08.15 @ 15:33:57 Sessions 1 Manual Loads 0 Difficulty Rogue Special Mode None Game No. 36 Rogue 36 Adventurer 0 Explorer 0 Win Type - Total 0 Types 0/0/0/0/0/0/0/0/0/0 Lore% 14 Gallery% 30 Achievement% 25 Wizard Run 0 Options --------- Layout 1 ASCII 0 Keyboard 1 Movement Vi Keybinds 0 Fullscreen 2 Font 24/Smallcaps Map View 50x35 Zoom Use 0% Tactical HUD 1 Map Filters NONE Filters NONE Steam 1 RUN: c57bd2cf-58e7-42b7-a445-d979ca351f3d